[Event "Spring Chess Classic A 2024"]
[Site "Saint Louis"]
[Date "2024.04.18"]
[Round "7.5"]
[White "Swiercz, Dariusz"]
[Black "Aryan Chopra"]
[Result "1/2-1/2"]
[ECO "E92"]
[WhiteElo "2612"]
[BlackElo "2630"]
[Annotator "TA"]
[PlyCount "106"]
[EventDate "2024.04.11"]
[EventCountry "USA"]
[SourceTitle "playchess.com"]
[Source "ChessBase"]
[SourceQuality "1"]
[TimeControl "7200+30"]

{[%evp 36,106,43,39,24,41,53,33,62,70,66,80,97,65,66,56,58,0,0,0,0,0,0,0,8,0,0,0,0,0,0,0,0,0,0,0,0,-13,0,-42,-40,-42,-35,-42,-37,-14,-14,-10,-32,-38,0,0,0,0,0,0,0,0,0,0,0,0,0,0,0,0,0,0,0,0,0,0,0]} 1. d4 {[%emt 0:00:03]} Nf6 {[%emt 0:00:45]} 2. c4 {[%emt 0:00:04]} g6 {[%emt 0:00:07]} 3. Nc3 {[%emt 0:00:10]} Bg7 {[%emt 0:00:04]} 4. e4 {[%emt 0:00:05]} d6 {[%emt 0:00:03]} 5. Be2 {[%emt 0:00:25]} O-O {[%emt 0:00:16]} 6. Nf3 {[%emt 0:00:14]} e5 {[%emt 0:00:10]} 7. d5 {[%emt 0:00:04]} Na6 {[%emt 0:01:32]} 8. Nd2 {[%emt 0:00:30]} Ne8 {[%emt 0:01:48]} 9. Rb1 {[%emt 0:06:21]} f5 {[%emt 0:14:29]} 10. b4 {[%emt 0:01:31]} Nf6 {[%emt 0:00:41]} 11. O-O {[%emt 0:05:57]} Kh8 {[%emt 0:28:36] E92: King's Indian: Classical: 6 Be2 e5: 7 dxe5, 7 Be3 and Petrosian System without 7...Nbd7.} 12. Re1 $146 {[%emt 0:05:58]} ({Predecessor:} 12. Ba3 b6 13. f3 Bh6 14. Kh1 Be3 15. Nb3 f4 16. c5 Nh5 17. Qe1 Ng3+ 18. hxg3 Qg5 19. Rf2 fxg3 20. Nd1 Qh4+ 21. Kg1 Qh2+ 22. Kf1 Qh1# {0-1 Tari,A (2672)-Makarian,R (2533) Titled Tuesday intern op 05th Jul Late blitz 2022 (3)}) 12... c5 {[%emt 0:10:18]} 13. dxc6 {[%emt 0:02:22]} bxc6 {[%emt 0:00:10]} 14. b5 {[%emt 0:00:21]} cxb5 {[%emt 0:08:44]} 15. cxb5 {[%emt 0:05:20]} Nc5 {[%emt 0:00:24]} 16. Ba3 {[%emt 0:00:09]} Be6 {[%emt 0:03:02]} 17. Bxc5 {[%emt 0:16:29]} dxc5 {[%emt 0:00:06]} 18. Qc2 {[%emt 0:00:02]} c4 {[%emt 0:14:37]} 19. Bxc4 {[%emt 0:15:30]} (19. Nxc4 Rc8 20. Rbd1 (20. Nxe5 Nxe4 21. Nc6 Rxc6 $17) 20... Qc7 $15) 19... Bxc4 {[%emt 0:04:06]} 20. Nxc4 {[%emt 0:00:13]} Rc8 {[%emt 0:06:58]} 21. Nxe5 {[%emt 0:01:05]} Ng4 {[%emt 0:19:09]} 22. Nc6 $1 {[%emt 0:00:28]} Qd6 $1 {[%emt 0:00:47]} 23. e5 {[%emt 0:30:00]} Nxe5 {[%emt 0:00:07]} 24. Rbd1 {[%emt 0:00:03]} (24. Nxa7 $2 Ng4 25. Nxc8 Qxh2+ 26. Kf1 Rxc8 $19) 24... Qc7 $1 {[%emt 0:00:13]} 25. Nd5 {[%emt 0:00:43]} Qb7 $1 {[%emt 0:00:05]} 26. Rxe5 {[%emt 0:14:51]} ({Don't play} 26. Nde7 Qxe7 27. f4 Nxc6 28. Rxe7 Nxe7 $15) (26. Qd2 $14 Nxc6 27. bxc6 Qxc6 28. Ne7) 26... Bxe5 $11 {[%emt 0:00:07]} 27. Qc5 {[%emt 0:00:01]} Bg7 {[%emt 0:03:01]} 28. a4 {[%emt 0:00:16]} Rf7 {[%emt 0:03:33]} 29. h4 {[%emt 0:03:24]} f4 {[%emt 0:04:45]} 30. Qc4 {[%emt 0:04:03]} Qd7 {[%emt 0:01:00]} 31. Nc3 {[%emt 0:07:10]} Qf5 {[%emt 0:02:04]} 32. Ne4 {[%emt 0:00:08]} Rd7 $1 {[%emt 0:00:04]} 33. Rxd7 {[%emt 0:09:09]} Qxd7 {[%emt 0:00:04]} 34. Ng5 {[%emt 0:00:03]} h6 {[%emt 0:01:08]} 35. Nf3 {[%emt 0:01:37]} Qf5 {[%emt 0:01:11]} 36. Qe2 {[%emt 0:00:08]} Rc7 {[%emt 0:02:19]} 37. Kh2 {[%emt 0:02:36]} Kh7 {[%emt 0:00:13]} 38. Qe8 {[%emt 0:00:41]} Bf6 {[%emt 0:01:33]} 39. Qf8 {[%emt 0:01:10]} Rg7 {[%emt 0:00:51]} 40. a5 {[%emt 0:00:18]} g5 {[%emt 0:00:10]} 41. Ncd4 $1 {[%emt 0:00:42]} Qg6 {[%emt 0:00:18]} 42. Ne6 {[%emt 0:00:28]} g4 {[%emt 0:00:19]} 43. Nxg7 {[%emt 0:00:35]} (43. Nxf4 $2 {perishes.} g3+ (43... Qf5 $2 44. g3 $19) 44. fxg3 Qxg3+ 45. Kh1 Qxf4 $19) 43... gxf3 {[%emt 0:00:40]} ({Reject} 43... Bxg7 44. Qxf4 gxf3 45. Qxf3 $14) 44. gxf3 {[%emt 0:00:03]} Qxg7 {[%emt 0:00:47]} 45. Qc8 {[%emt 0:00:20]} Bd4 {[%emt 0:00:31]} 46. Qf5+ {[%emt 0:00:45]} Kh8 {[%emt 0:00:09]} 47. Qc8+ {[%emt 0:00:02]} Kh7 {[%emt 0:00:10]} 48. Qf5+ {[%emt 0:00:50]} Kh8 {[%emt 0:00:13]} 49. h5 {[%emt 0:00:15]} Bxf2 {[%emt 0:01:01]} 50. Qc8+ {[%emt 0:00:05]} Qg8 {[%emt 0:00:04]} 51. Qc3+ {[%emt 0:00:04]} Qg7 {[%emt 0:00:03]} 52. Qc8+ {[%emt 0:00:03]} Qg8 {[%emt 0:00:04]} 53. Qc3+ {[%emt 0:00:02]} Qg7 {[%emt 0:00:06]} 1/2-1/2

[Event "Spring Chess Classic A 2024"]
[Site "Saint Louis"]
[Date "2024.04.19"]
[Round "8.1"]
[White "Mendonca, Leon Luke"]
[Black "Aryan Chopra"]
[Result "1/2-1/2"]
[ECO "B48"]
[WhiteElo "2626"]
[BlackElo "2630"]
[Annotator "TA"]
[PlyCount "144"]
[EventDate "2024.04.11"]
[EventCountry "USA"]
[SourceTitle "playchess.com"]
[Source "ChessBase"]
[SourceQuality "1"]
[TimeControl "7200+30"]

{[%evp 51,144,-8,-22,-13,-16,-22,-23,-25,-36,-43,-40,-41,-8,-8,0,0,0,0,0,0,0,0,0,-8,-8,0,-8,-8,-8,-8,-7,-7,-7,-8,-8,-8,-8,-8,-8,-8,-8,-8,-8,-8,-66,-66,-8,-8,-7,-7,0,0,0,0,0,0,0,0,0,0,0,0,0,0,0,0,0,0,0,0,0,0,0,0,0,0,0,0,0,0,0,0,0,0,0,0,0,0,0,0,0,0,0,0,0]} 1. e4 {[%emt 0:00:20]} c5 {[%emt 0:01:31]} 2. Nf3 {[%emt 0:01:06]} e6 {[%emt 0:00:06]} 3. d4 {[%emt 0:00:34]} cxd4 {[%emt 0:00:06]} 4. Nxd4 {[%emt 0:00:06]} Nc6 {[%emt 0:00:04]} 5. Nc3 {[%emt 0:00:37]} Qc7 {[%emt 0:00:07]} 6. Be3 {[%emt 0:00:54]} a6 {[%emt 0:00:09]} 7. g4 {[%emt 0:03:37] B48: Sicilian: Taimanov: 5 Nc3 Qc7 6 Be3 a6 without Be2.} h6 {[%emt 0:00:48]} 8. Rg1 {[%emt 0:11:38]} b5 {[%emt 0:11:56]} 9. Nxc6 {[%emt 0:01:36]} Qxc6 {[%emt 0:01:15]} 10. Qd2 {[%emt 0:00:52]} b4 $146 {[%emt 0:21:31]} ({Predecessor:} 10... Bb7 11. O-O-O Nf6 12. f3 Rc8 13. h4 d6 14. g5 hxg5 15. hxg5 Nd7 16. g6 f6 {0-1 Ruiz Perez,J (2089)-Morales Garcia,S (2234) Carlos Torre Memorial op 33rd 2023 (5)}) 11. Ne2 {[%emt 0:00:36]} Qd6 {[%emt 0:00:59]} 12. O-O-O {[%emt 0:32:49]} Qxd2+ {[%emt 0:00:23]} 13. Rxd2 {[%emt 0:00:10]} Nf6 {[%emt 0:16:53]} 14. e5 {[%emt 0:12:39]} Nd5 {[%emt 0:00:24]} 15. Bg2 {[%emt 0:01:31]} Bb7 {[%emt 0:01:12]} 16. Bxd5 {[%emt 0:03:41]} Bxd5 {[%emt 0:00:17]} 17. Nf4 {[%emt 0:00:09]} Bc6 {[%emt 0:11:16]} 18. Nh5 {[%emt 0:00:40]} Rb8 {[%emt 0:01:46]} 19. f4 {[%emt 0:07:41]} Rb5 {[%emt 0:00:25]} 20. f5 {[%emt 0:17:42]} Bc5 {[%emt 0:11:40]} 21. Re1 {[%emt 0:19:13]} Bxe3 {[%emt 0:00:08]} 22. Rxe3 {[%emt 0:00:02]} g6 {[%emt 0:00:13]} 23. Nf6+ {[%emt 0:05:43]} Ke7 {[%emt 0:00:07]} 24. fxg6 {[%emt 0:00:20]} fxg6 {[%emt 0:00:07]} 25. h4 {[%emt 0:00:07]} d6 {[%emt 0:04:41]} 26. Rxd6 {[%emt 0:02:54]} Rxe5 $1 {[%emt 0:00:06]} 27. Rxe5 {[%emt 0:00:33]} Kxd6 {[%emt 0:00:05]} 28. Re3 {[%emt 0:00:44]} e5 {[%emt 0:01:13]} 29. a3 {[%emt 0:03:26]} Ke6 {[%emt 0:08:34]} 30. Ne4 {[%emt 0:00:02]} bxa3 {[%emt 0:00:05]} 31. bxa3 {[%emt 0:00:03]} Bxe4 {[%emt 0:00:25]} 32. Rxe4 {[%emt 0:00:00]} Rd8 {[%emt 0:00:08]} 33. Ra4 {[%emt 0:01:21]} Rd6 {[%emt 0:00:06]} 34. c4 {[%emt 0:00:53]} h5 {[%emt 0:00:05]} 35. c5 {[%emt 0:01:21]} Rc6 {[%emt 0:00:20]} 36. gxh5 {[%emt 0:00:24]} gxh5 {[%emt 0:00:08]} (36... Rxc5+ 37. Kb2 gxh5 38. Rxa6+ Kf5 39. a4) 37. Ra5 {[%emt 0:01:29]} Kd5 {[%emt 0:02:31]} 38. Kd2 {[%emt 0:00:01]} Kd4 {[%emt 0:11:44]} 39. Ra4+ $1 {[%emt 0:00:00]} Kxc5 {[%emt 0:00:17]} 40. Ra5+ {[%emt 0:00:10]} Kd4 {[%emt 0:00:17]} 41. Ra4+ {[%emt 0:00:05]} Kd5 {[%emt 0:00:06]} 42. Kd3 {[%emt 0:00:42]} Rd6 {[%emt 0:02:10]} 43. Ke3 {[%emt 0:01:07]} Ke6 {[%emt 0:00:07]} 44. Ke4 {[%emt 0:01:33]} Rc6 {[%emt 0:09:51]} 45. Ra5 $1 {[%emt 0:00:01]} Rc4+ {[%emt 0:00:08]} 46. Kf3 {[%emt 0:00:06]} Rxh4 {[%emt 0:00:11]} 47. Rxa6+ {[%emt 0:00:00]} Kf5 {[%emt 0:00:07]} 48. a4 {[%emt 0:01:36]} Rh3+ {[%emt 0:01:30]} ({Black should try} 48... Rf4+ $15 49. Kg2 Ke4) 49. Kg2 $1 $11 {[%emt 0:00:21]} Rc3 {[%emt 0:02:38]} 50. a5 {[%emt 0:00:24]} Ra3 {[%emt 0:00:07]} 51. Ra8 {[%emt 0:00:25]} h4 {[%emt 0:00:06]} 52. a6 {[%emt 0:00:39]} h3+ {[%emt 0:00:04]} 53. Kh2 {[%emt 0:00:15]} Kf4 {[%emt 0:00:44]} 54. a7 {[%emt 0:01:16]} Ke4 {[%emt 0:00:04]} 55. Kh1 {[%emt 0:00:42]} (55. Kg1 {simplifies} Ra2 56. Rh8 Rxa7 57. Rxh3 Rf7 58. Kg2) 55... Ra2 {[%emt 0:00:06]} 56. Kg1 $1 {[%emt 0:00:01]} ({Don't go for} 56. Rh8 $2 Rxa7 57. Rh5 Rg7 $19) 56... Rg2+ {[%emt 0:07:35]} 57. Kh1 {[%emt 0:00:00]} (57. Kf1 {simplifies} Rg7 58. Rh8 Rxa7 59. Rxh3 Kd4 60. Ke2) 57... Rg7 {[%emt 0:00:16]} (57... Ra2 $5) 58. Kh2 {[%emt 0:00:01]} Rh7 {[%emt 0:00:24]} 59. Kg1 {[%emt 0:00:11]} Re7 {[%emt 0:01:13]} 60. Kh2 {[%emt 0:00:02]} Ke3 {[%emt 0:01:08]} 61. Kxh3 {[%emt 0:00:06]} e4 {[%emt 0:00:15]} 62. Kg4 {[%emt 0:02:33]} Ke2 {[%emt 0:00:05]} 63. Kf5 {[%emt 0:00:01]} e3 {[%emt 0:00:11]} 64. Kf6 {[%emt 0:00:00]} Rh7 {[%emt 0:02:33]} 65. Ke6 {[%emt 0:00:27]} Ke1 {[%emt 0:00:10]} 66. Kd6 {[%emt 0:00:15]} e2 {[%emt 0:00:06]} 67. Kc6 {[%emt 0:00:08]} Rf7 {[%emt 0:01:13]} 68. Kb6 {[%emt 0:00:05]} Rf6+ {[%emt 0:00:09]} 69. Kb5 {[%emt 0:00:36]} Rf7 {[%emt 0:00:16]} 70. Kb6 {[%emt 0:00:02]} Rf6+ {[%emt 0:00:07]} 71. Kb5 {[%emt 0:00:03]} Rf7 {[%emt 0:00:05]} 72. Kb6 {[%emt 0:00:03]} Rf6+ {[%emt 0:00:05]} (72... Kf2 $5 73. Re8 $8 Rxa7 74. Kxa7 e1=Q 75. Rxe1 Kxe1 $11) 1/2-1/2

[Event "Spring Chess Classic A 2024"]
[Site "Saint Louis"]
[Date "2024.04.19"]
[Round "8.2"]
[White "Mishra, Abhimanyu"]
[Black "Swiercz, Dariusz"]
[Result "1-0"]
[ECO "B12"]
[WhiteElo "2626"]
[BlackElo "2612"]
[Annotator "TA"]
[PlyCount "75"]
[EventDate "2024.04.11"]
[EventCountry "USA"]
[SourceTitle "playchess.com"]
[Source "ChessBase"]
[SourceQuality "1"]
[TimeControl "7200+30"]

{[%evp 10,75,23,8,15,14,20,0,34,25,31,30,44,36,31,20,8,3,8,14,11,11,31,45,75,84,50,92,108,108,413,418,507,462,500,226,491,496,482,216,359,339,337,350,332,340,352,285,430,412,637,638,1174,934,29983,29984,29982,884,29988,29989,29989,29990,29990,29985,29990,29991,29991,29992]} 1. e4 {[%emt 21:10:00]} c6 {[%emt 0:02:10]} 2. d4 {[%emt 0:00:00]} d5 {[%emt 0:00:03]} 3. e5 {[%emt 0:00:00]} Bf5 {[%emt 0:00:03]} 4. Nd2 {[%emt 0:00:00]} e6 {[%emt 0:00:18]} 5. Nb3 {[%emt 0:00:00]} Nd7 {[%emt 0:00:07]} 6. Nf3 {[%emt 0:00:00]} Qc7 {[%emt 0:00:17]} 7. Be2 {[%emt 0:00:00]} c5 {[%emt 0:03:41]} 8. c3 {[%emt 0:00:00]} c4 {[%emt 0:02:05] The position is equal.} 9. Nbd2 {[%emt 0:00:00]} h6 {[%emt 0:00:18]} 10. Nf1 {[%emt 0:00:00]} Ne7 {[%emt 0:00:10]} 11. Ne3 {[%emt 0:00:00]} Bh7 {[%emt 0:00:10]} 12. Nh4 {[%emt 0:00:00]} Nc6 {[%emt 0:22:24]} 13. g3 {[%emt 0:00:00]} Be7 {[%emt 0:14:54]} 14. Nhg2 {[%emt 0:00:00]} b5 {[%emt 0:00:11]} 15. O-O {[%emt 0:00:00]} b4 {[%emt 0:30:59]} 16. f4 {[%emt 0:00:00][%cal Bf2f4,Bf4f5,Bf5e6][%mdl 32]} bxc3 {[%emt 0:00:14]} 17. bxc3 {[%emt 0:00:00]} Qa5 {[%emt 0:00:28]} 18. Bd2 {[%emt 0:00:00]} Ba3 {[%emt 0:38:45]} 19. f5 {[%emt 0:00:00] fxe6 would now be deadly.} Bb2 $2 {[%emt 0:00:03][%mdl 8192] This costs Black the game.} (19... O-O $16) 20. fxe6 $1 $18 {[%emt 0:00:00]} fxe6 {[%emt 0:00:02][%cal Oe8c8] [#]} 21. Bh5+ $1 {[%emt 0:00:00]} g6 {[%emt 0:00:03][%cal Ob2a1] [#]} 22. Qg4 {[%emt 0:00:00]} (22. Rb1 $142 $1) 22... gxh5 {[%emt 0:01:49]} (22... O-O-O) 23. Qxe6+ {[%emt 0:00:00]} Ne7 {[%emt 0:00:03]} 24. Qf7+ {[%emt 0:00:00]} Kd8 {[%emt 0:00:02]} 25. Qg7 {[%emt 0:00:00]} Re8 {[%emt 0:06:47]} 26. Qxh7 {[%emt 0:00:00]} Bxa1 {[%emt 0:00:03]} 27. Rxa1 {[%emt 0:00:00][%cal Og2f4] Strongly threatening Nf4!} Rb8 {[%emt 0:01:30]} 28. Nf4 {[%emt 0:00:00]} Nf8 {[%emt 0:00:05] Wards off Ne6+} (28... Rb6 {was called for.} 29. Qf7 (29. Nxh5 Rb2 $16) 29... h4 30. Ne6+ (30. Nexd5 Nxd5 31. Nxd5 hxg3 $18) (30. gxh4 Qa6 $18) (30. Nfxd5 Nxd5 31. Nxd5 Rbe6 $18) 30... Rxe6) 29. Qf7 {[%emt 0:00:00]} Rb2 {[%emt 0:00:27]} (29... Qa6 $142 30. Nexd5 Nxd5) 30. Nfxd5 {[%emt 0:00:00]} Rxd2 {[%emt 0:06:46]} 31. Nxe7 {[%emt 0:00:00]} ({Stronger than} 31. Nxc4 Qxd5 32. Qxd5+ Nxd5 $17) 31... Rxe7 {[%emt 0:00:31]} 32. Qxf8+ {[%emt 0:00:00]} Kd7 {[%emt 0:00:30]} 33. Nf5 {[%emt 0:00:00]} ({Inferior is} 33. Nxc4 Qxc3 34. e6+ Rxe6 (34... Kxe6 35. Qc8+ Kd5 36. Qc5+ Ke4 37. Nd6+ Kf3 38. Rf1+ Ke2 39. Qxc3) 35. Qf7+ Kd8 36. Qf8+ Kd7 37. Qf7+ Kd8 38. Qg8+ Ke7 39. Qg7+ Ke8 40. Qg8+ Ke7 41. Qh7+ Kd8 42. Qg8+ Ke7 $11) (33. Rb1 $142 Qa6 34. Nd5 Rd1+ 35. Rxd1 Qa3 36. Qxe7+ Qxe7 37. Nxe7 Kxe7 38. h4) 33... Re8 {[%emt 0:00:29]} 34. Qd6+ {[%emt 0:00:00] White mates.} Kc8 {[%emt 0:00:01]} 35. Qc6+ {[%emt 0:00:00]} Kd8 {[%emt 0:00:03]} 36. Rb1 {[%emt 0:00:00][%cal Rb1b8]} Qc7 {[%emt 0:00:35]} 37. Qd5+ {[%emt 0:00:00]} Kc8 {[%emt 0:00:43]} 38. Nd6+ {[%emt 0:00:00] Weighted Error Value: White=0.33/Black=0.86.  Loses game:     	---       	Black=1      Mistake:       	White=1     	Black=3      Inaccurate:     	---       	Black=4      OK:         	White=12    	Black=8      Best:        	White=3     	Black=1      Strong:       	White=2     	---} 1-0

[Event "Spring Chess Classic A 2024"]
[Site "Saint Louis"]
[Date "2024.04.19"]
[Round "8.3"]
[White "Hakobyan, Aram"]
[Black "Antipov, Mikhail Al."]
[Result "1/2-1/2"]
[ECO "D38"]
[WhiteElo "2619"]
[BlackElo "2574"]
[Annotator "TA"]
[PlyCount "74"]
[EventDate "2024.04.11"]
[EventCountry "USA"]
[SourceTitle "playchess.com"]
[Source "ChessBase"]
[SourceQuality "1"]
[TimeControl "7200+30"]

{[%evp 16,74,2,0,13,0,0,0,20,17,30,17,25,13,20,5,24,22,17,16,35,19,31,18,28,18,39,38,33,35,34,35,35,27,27,0,0,0,0,2,30,13,10,0,27,0,9,0,6,0,0,0,0,0,0,0,0,0,0,0,0]} 1. d4 {[%emt 0:00:24]} Nf6 {[%emt 0:00:21]} 2. c4 {[%emt 0:00:18]} e6 {[%emt 0:00:27]} 3. Nf3 {[%emt 0:00:31]} d5 {[%emt 0:00:30]} 4. Nc3 {[%emt 0:00:27]} Bb4 {[%emt 0:00:04]} 5. Bg5 {[%emt 0:00:18]} h6 {[%emt 0:00:06]} 6. Bxf6 {[%emt 0:00:10]} Qxf6 {[%emt 0:00:04]} 7. Qb3 {[%emt 0:00:12]} c5 {[%emt 0:01:51]} 8. cxd5 {[%emt 0:00:28]} exd5 {[%emt 0:01:07]} 9. dxc5 {[%emt 0:00:14]} Bxc3+ {[%emt 0:01:20]} 10. Qxc3 {[%emt 0:00:11]} Qxc3+ {[%emt 0:00:08]} 11. bxc3 {[%emt 0:00:06][%cal Bb2c3,Bc3c4,Bc4c5][%mdl 32]} Nd7 {[%emt 0:04:09]} 12. Rd1 {[%emt 0:00:23]} Nf6 {[%emt 0:00:20]} 13. Nd4 {[%emt 0:05:59]} O-O {[%emt 0:18:46] [#]} 14. c4 $1 {[%emt 0:01:12]} Be6 {[%emt 0:12:19]} (14... dxc4 15. Rc1) 15. e3 {[%emt 0:24:47]} Rac8 {[%emt 0:03:25] [#]} 16. c6 $1 {[%emt 0:01:14]} bxc6 {[%emt 0:02:49]} 17. c5 {[%emt 0:01:35]} Bd7 {[%emt 0:08:25]} 18. f3 {[%emt 0:03:25]} Rb8 {[%emt 0:01:30]} 19. Bd3 {[%emt 0:01:55]} Rb2 {[%emt 0:01:24][%csl LRa2,LRg2]} 20. Rd2 {[%emt 0:01:52]} Rfb8 {[%emt 0:00:26]} 21. Nb3 {[%emt 0:07:41]} Rxd2 {[%emt 0:00:13]} 22. Kxd2 {[%emt 0:00:08]} Ne8 {[%emt 0:03:14]} 23. Kc3 {[%emt 0:07:12]} Nc7 {[%emt 0:00:06]} 24. Nd4 {[%emt 0:17:22]} Ne6 {[%emt 0:06:27]} 25. Nb3 {[%emt 0:05:20]} Kf8 {[%emt 0:05:11]} 26. g4 {[%emt 0:00:36]} Ke7 {[%emt 0:00:42]} 27. h4 {[%emt 0:05:34]} Kd8 {[%emt 0:13:24]} 28. Bf5 {[%emt 0:04:20]} Nc7 {[%emt 0:00:29]} 29. Bd3 {[%emt 0:05:32]} Ne6 {[%emt 0:00:16]} 30. Rf1 {[%emt 0:03:50]} a5 {[%emt 0:06:58] The position is equal.} 31. a4 {[%emt 0:04:35]} Kc7 {[%emt 0:05:20]} 32. Ra1 {[%emt 0:02:25]} g6 {[%emt 0:02:32]} 33. Be2 {[%emt 0:05:18]} Re8 {[%emt 0:03:01]} 34. Kd2 {[%emt 0:00:46]} Rb8 {[%emt 0:00:11]} 35. Kc3 {[%emt 0:00:08]} Re8 {[%emt 0:00:04]} 36. Kd2 {[%emt 0:00:54]} Rb8 {[%emt 0:00:05]} 37. Kc3 {[%emt 0:00:20]} Re8 {[%emt 0:00:21] Weighted Error Value: White=0.06 (flawless) /Black=0.05 (flawless) .  Inaccurate:     	White=1     	Black=1      OK:         	White=10    	Black=13} 1/2-1/2

[Event "Spring Chess Classic A 2024"]
[Site "Saint Louis"]
[Date "2024.04.18"]
[Round "8.4"]
[White "Bok, Benjamin"]
[Black "Theodorou, Nikolas"]
[Result "1/2-1/2"]
[ECO "E06"]
[WhiteElo "2620"]
[BlackElo "2622"]
[Annotator "TA"]
[PlyCount "35"]
[EventDate "2024.04.11"]
[EventCountry "USA"]
[SourceTitle "playchess.com"]
[Source "ChessBase"]
[SourceQuality "1"]
[TimeControl "7200+30"]

{[%evp 12,35,6,4,0,0,0,0,0,0,0,0,0,0,0,0,0,0,0,0,0,0,0,0,0,0]} 1. d4 {[%emt 0:00:04]} Nf6 {[%emt 0:00:07]} 2. c4 {[%emt 0:00:07]} e6 {[%emt 0:00:12]} 3. Nf3 {[%emt 0:00:08]} d5 {[%emt 0:00:23]} 4. g3 {[%emt 0:00:07]} Be7 {[%emt 0:00:31]} 5. Bg2 {[%emt 0:00:17]} O-O {[%emt 0:00:19]} 6. Nc3 {[%emt 0:04:26]} dxc4 {[%emt 0:03:00]} 7. Ne5 {[%emt 0:01:01] The position is equal.} Qd6 {[%emt 0:02:03]} 8. O-O {[%emt 0:05:06]} Qa6 {[%emt 0:01:26]} 9. a4 {[%emt 0:01:38]} Nc6 {[%emt 0:04:24]} 10. Nb5 {[%emt 0:01:07]} Nxe5 {[%emt 0:04:19]} 11. dxe5 {[%emt 0:03:38]} Rd8 $1 {[%emt 0:00:58]} 12. exf6 {[%emt 0:06:27]} Rxd1 {[%emt 0:00:16]} 13. Rxd1 {[%emt 0:00:16]} Bd6 {[%emt 0:00:55]} (13... Bxf6 $2 {is the wrong capture.} 14. Nxc7 Qa5 15. Nxa8 $18) 14. Bf4 $1 {[%emt 0:01:52][%cal Rb5d6]} Qa5 $1 {[%emt 0:05:07]} 15. Bd2 {[%emt 0:05:26]} Qa6 {[%emt 0:01:27] And now ...Bd7 would win.} 16. Bf4 {[%emt 0:01:08][%cal Rb5d6]} Qa5 $1 {[%emt 0:00:58]} 17. Bd2 {[%emt 0:10:48]} Qa6 {[%emt 0:00:18] aiming for ...Bd7.} 18. Bf4 {[%emt 0:01:58] A rather calm draw.   Weighted Error Value: White=0.00 (flawless) /Black=0.00 (flawless) .  OK:         	White=6     	Black=3      Best:        	---       	Black=2      Strong:       	White=1     	Black=3} 1/2-1/2

[Event "Spring Chess Classic A 2024"]
[Site "Saint Louis"]
[Date "2024.04.19"]
[Round "8.5"]
[White "Ter-Sahakyan, Samvel"]
[Black "Yoo, Christopher Woojin"]
[Result "1/2-1/2"]
[ECO "B12"]
[WhiteElo "2644"]
[BlackElo "2583"]
[Annotator "TA"]
[PlyCount "58"]
[EventDate "2024.04.11"]
[EventCountry "USA"]
[SourceTitle "playchess.com"]
[Source "ChessBase"]
[SourceQuality "1"]
[TimeControl "7200+30"]

{[%evp 14,58,0,0,0,7,17,30,24,25,56,39,97,79,110,0,14,0,30,0,25,24,25,24,31,39,91,63,85,83,99,86,89,98,86,85,128,123,146,54,84,0,140,0,72,0,141]} 1. e4 {[%emt 0:00:05]} c6 {[%emt 0:00:05]} 2. d4 {[%emt 0:00:11]} d5 {[%emt 0:00:05]} 3. e5 {[%emt 0:03:34]} Bf5 {[%emt 0:00:06]} 4. h4 {[%emt 0:00:43]} h5 {[%emt 0:00:07]} 5. c4 {[%emt 0:00:12]} dxc4 {[%emt 0:00:03]} 6. Bxc4 {[%emt 0:01:53]} e6 {[%emt 0:00:04]} 7. Nc3 {[%emt 0:03:48]} Nd7 {[%emt 0:00:21]} 8. Nge2 {[%emt 0:00:15]} Be7 {[%emt 0:00:59]} 9. g3 {[%emt 0:00:25]} b5 {[%emt 0:07:04][%cal Bb7b5,Bb5b4][%mdl 32]} 10. Bb3 {[%emt 0:01:20]} b4 {[%emt 0:03:22] White has an edge.} 11. Na4 {[%emt 0:26:37]} c5 {[%emt 0:11:47]} 12. Bf4 {[%emt 0:17:44]} Nh6 {[%emt 0:04:43]} (12... Qa5 $1 $14) 13. O-O {[%emt 0:04:20]} Qa5 {[%emt 0:14:53]} 14. Nxc5 {[%emt 0:40:17]} (14. Rc1 $16) 14... Nxc5 $11 {[%emt 0:04:36]} 15. dxc5 {[%emt 0:00:05] Nd4 would now be deadly.} Rd8 {[%emt 0:07:31]} 16. Qc1 {[%emt 0:00:01]} Bxc5 {[%emt 0:03:02]} 17. Bxh6 {[%emt 0:16:41]} Rxh6 {[%emt 0:01:11]} 18. Rd1 {[%emt 0:00:14]} Rxd1+ {[%emt 0:02:15]} 19. Qxd1 {[%emt 0:00:01] Black must now prevent Rc1.} Qb6 {[%emt 0:06:54]} (19... Qc7 $14) 20. Rc1 $1 $16 {[%emt 0:02:35][%cal Oc1c5] Rxc5! would kill now.} g6 {[%emt 0:01:28][%cal Oe8f8]} 21. Kg2 {[%emt 0:04:06]} (21. Qd2 {simplifies} Rh8 22. Nd4 Kf8 23. Nxf5 gxf5 24. Bd1) 21... Rh8 {[%emt 0:03:13][%cal Ob6c7]} ({Worse is} 21... Bxf2 22. Rc8+ Ke7 23. Ba4 Be4+ 24. Kf1) 22. Bc2 {[%emt 0:01:43]} Ke7 {[%emt 0:00:42]} (22... Bxf2 $2 {loses.} 23. Bxf5 Ke7 24. Bxg6 $18) 23. Bxf5 {[%emt 0:00:23]} gxf5 {[%emt 0:00:04]} 24. Qd2 {[%emt 0:01:47]} Qc6+ {[%emt 0:03:01]} 25. f3 $1 {[%emt 0:00:28] aiming for Qg5+. White is more active.} Qb5 {[%emt 0:05:28]} 26. Qg5+ {[%emt 0:00:32]} ({White should try} 26. Rd1 $1 $16 {Qg5+ is the strong threat.} Kf8 27. Qd8+ Qe8 28. Qf6) 26... Kd7 $1 $14 {[%emt 0:00:20] [#]} 27. Qd2+ {[%emt 0:01:20]} (27. Rc2 $142 $1) 27... Ke7 $1 $16 {[%emt 0:01:28]} 28. Qg5+ {[%emt 0:00:19]} ({White should play} 28. Rd1 {Hoping for Qg5+.} Kf8 29. Qd8+ Qe8 30. Qf6) 28... Kd7 $1 {[%emt 0:00:08] [#]} 29. Qd2+ {[%emt 0:01:05]} (29. Rc2 $142 $1) 29... Ke7 $1 {[%emt 0:00:29] Weighted Error Value: White=0.33/Black=0.13 (very precise) .  Mistake:       	White=5     	Black=2      Inaccurate:     	White=1     	Black=3      OK:         	White=8     	Black=5      Best:        	White=1     	Black=1      Strong:       	White=2     	Black=4} 1/2-1/2